fUST/lending_fUST_20240501
["ID","MTS","AMOUNT","RATE_DAILY","PERIOD"]
[325193688,1714572646936,-263.565838,0.00053998,7]
[325193689,1714572646945,-263.565838,0.00053998,7]
[325193690,1714572646954,-260.552831,0.00053998,7]
[325193691,1714572646963,-260.552831,0.00053998,7]
[325193692,1714572646972,-226.452047,0.00053998,7]
[325193693,1714572646982,-226.452047,0.00053998,7]
[325193694,1714572646991,-151.0,0.00053998,7]
[325193695,1714572647000,-151.0,0.00053998,7]
[325193696,1714572647010,-220.646436,0.00053998,7]
[325193697,1714572647019,-220.646436,0.00053998,7]
[325193698,1714572647028,-393.95084,0.00053998,7]
[325193699,1714572647038,-421.441234,0.00053998,7]
[325193700,1714572647047,-421.441234,0.00053998,7]
[325193701,1714572647056,-151.0,0.00053998,7]
[325193702,1714572647066,-339.599942,0.00053998,7]
[325193703,1714572647076,-339.599942,0.00053998,7]
[325193704,1714572647086,-151.0,0.00053998,7]
[325193705,1714572647095,-151.0,0.00053998,7]
[325193706,1714572647104,-151.0,0.00053998,7]
[325193707,1714572647113,-151.0,0.00053998,7]
[325193708,1714572647124,-151.0,0.00053998,7]
[325193709,1714572647135,-229.031688,0.00053998,7]
[325193710,1714572647144,-229.031688,0.00053998,7]
[325193711,1714572647157,-293.818772,0.00053998,7]
[325193712,1714572647167,-151.0,0.00053998,7]
[325193713,1714572647180,-293.818772,0.00053998,7]
[325193714,1714572647189,-151.0,0.00053998,7]
[325193715,1714572647198,-395.330545,0.00053998,7]
[325193716,1714572647209,-270.555248,0.00053998,7]
[325193717,1714572647219,-395.330545,0.00053998,7]
[325193718,1714572647228,-180.805915,0.00053998,7]
[325193719,1714572647237,-180.805915,0.00053998,7]
[325193720,1714572647250,-336.072878,0.00053998,7]
[325193721,1714572647259,-336.072878,0.00053998,7]
[325193722,1714572647269,-151.0,0.00053998,7]
[325193723,1714572647278,-157.372826,0.00053998,7]
[325193724,1714572647288,-157.372826,0.00053998,7]
[325193725,1714572647298,-151.0,0.00053998,7]
[325193726,1714572647307,-947.75857,0.00053998,7]
[325193727,1714572647316,-947.75857,0.00053998,7]
[325193728,1714572647325,-151.0,0.00053998,7]
[325193729,1714572647335,-496.445566,0.00053998,7]
[325193730,1714572647345,-496.445566,0.00053998,7]
[325193731,1714572647355,-265.381357,0.00053998,7]
[325193732,1714572647366,-265.381357,0.00053998,7]
[325193733,1714572647375,-151.0,0.00053998,7]
[325193734,1714572647384,-153.637935,0.00053998,7]
[325193735,1714572647393,-193.688564,0.00053998,7]
[325193736,1714572647403,-193.688564,0.00053998,7]
[325193737,1714572647414,-365.042218,0.00053998,7]
[325193738,1714572647424,-151.0,0.00053998,7]
[325193739,1714572647434,-365.042218,0.00053998,7]
[325193740,1714572647445,-665.158902,0.00053998,7]
[325193741,1714572647454,-151.0,0.00053998,7]
[325193742,1714572647463,-665.158902,0.00053998,7]
[325193743,1714572647473,-151.0,0.00053998,7]
[325193744,1714572647483,-160.46474346,0.00053999,60]
[325193745,1714572647492,-211.06422016,0.00053999,7]
[325193746,1714572647501,-807435.03968002,0.00054,2]
[325193747,1714572647511,-606.09,0.00054,120]
[325193748,1714572647519,-297.0,0.00054,32]
[325193749,1714572647529,-1000.0,0.00054,120]
[325193750,1714572647538,-151.0,0.00054,7]
[325193751,1714572647547,-151.0,0.00054,3]
[325193752,1714572647557,-151.0,0.00054,7]
[325193753,1714572647567,-152.445225,0.00054,7]
[325193754,1714572647577,-151.0,0.00054,7]
[325193755,1714572647586,-297.660375,0.00054,7]
[325193756,1714572647596,-263.565838,0.00054,7]
[325193757,1714572647606,-263.565838,0.00054,7]
[325193758,1714572647616,-260.552831,0.00054,7]
[325193759,1714572647625,-260.552831,0.00054,7]
[325193760,1714572647635,-226.452047,0.00054,7]
[325193761,1714572647644,-226.452047,0.00054,7]
[325193762,1714572647654,-151.0,0.00054,7]
[325193763,1714572647664,-151.0,0.00054,7]
[325193764,1714572647673,-220.646436,0.00054,7]
[325193765,1714572647683,-220.646436,0.00054,7]
[325193766,1714572647693,-393.95084,0.00054,7]
[325193767,1714572647704,-421.441234,0.00054,7]
[325193768,1714572647714,-421.441234,0.00054,7]
[325193769,1714572647723,-185.428342,0.00054,7]
[325193770,1714572647733,-339.599942,0.00054,7]
[325193771,1714572647742,-339.599942,0.00054,7]
[325193772,1714572647752,-151.0,0.00054,7]
[325193773,1714572647761,-151.0,0.00054,7]
[325193774,1714572647770,-151.0,0.00054,7]
[325193775,1714572647779,-151.0,0.00054,7]
[325193776,1714572647789,-152.910251,0.00054,7]
[325193777,1714572647799,-229.031688,0.00054,7]
[325193778,1714572647808,-229.031688,0.00054,7]
[325193779,1714572647817,-293.818772,0.00054,7]
[325193780,1714572647827,-151.0,0.00054,7]
[325193781,1714572647836,-293.818772,0.00054,7]
[325193782,1714572647845,-152.119776,0.00054,7]
[325193783,1714572647855,-395.330545,0.00054,7]
[325193784,1714572647865,-395.330545,0.00054,7]
[325193785,1714572647875,-180.805915,0.00054,7]
[325193786,1714572647884,-180.805915,0.00054,7]
[325193787,1714572647894,-336.072878,0.00054,7]
[325193788,1714572647904,-336.072878,0.00054,7]
[325193789,1714572647913,-151.0,0.00054,7]
[325193790,1714572647923,-157.372826,0.00054,7]
[325193791,1714572647932,-157.372826,0.00054,7]
[325193792,1714572647941,-169.745349,0.00054,2]
[325193793,1714572647950,-151.0,0.00054,7]
[325193794,1714572647959,-495.0,0.00054,43]
[325193795,1714572647968,-947.75857,0.00054,7]
[325193796,1714572647977,-947.75857,0.00054,7]
[325193797,1714572647987,-151.0,0.00054,7]
[325193798,1714572647996,-588.0,0.00054,30]
[325193799,1714572648006,-496.445566,0.00054,7]
[325193800,1714572648015,-496.445566,0.00054,7]
[325193801,1714572648024,-265.381357,0.00054,7]
[325193802,1714572648033,-265.381357,0.00054,7]
[325193803,1714572648042,-151.0,0.00054,7]
[325193804,1714572648051,-193.688564,0.00054,7]
[325193805,1714572648061,-193.688564,0.00054,7]
[325193806,1714572648070,-365.042218,0.00054,7]
[325193807,1714572648079,-151.0,0.00054,7]
[325193808,1714572648089,-365.042218,0.00054,7]
[325193809,1714572648099,-665.158902,0.00054,7]
[325193810,1714572648107,-500.0,0.00054,29]
[325193811,1714572648120,-151.0,0.00054,7]
[325193812,1714572648129,-665.158902,0.00054,7]
[325193813,1714572648139,-151.0,0.00054,7]
[325193814,1714572648148,-604.07512,0.00054102,2]
[325193815,1714572648160,-698.13517073,0.000544,60]
[325193816,1714572648169,-400.590165,0.00054448,2]
[325193817,1714572648182,-243.108975,0.00054448,2]
[325193818,1714572648192,-256.50333,0.00054448,2]
[325193819,1714572648203,-246.16363,0.00054448,2]
[325193820,1714572648213,-604.07512,0.00054593,2]
[325193821,1714572648222,-52028.86122804,0.000546,30]
[325193822,1714572648232,-151.0,0.00054603,120]
[325193823,1714572648241,-178.0,0.000547,30]
[325193824,1714572648252,-289.052651,0.000547,99]
[325193825,1714572648262,-517.89564404,0.00054794,120]
[325193826,1714572648271,-500.0,0.00054794,120]
[325193827,1714572648280,-500.0,0.00054794,120]
[325193828,1714572648289,-151.0,0.00054794,7]
[325193829,1714572648298,-151.0,0.00054794,7]
[325193830,1714572648308,-151.0,0.00054794,7]
[325193831,1714572648317,-500.0,0.00054794,120]
[325193832,1714572648326,-500.0,0.00054794,120]
[325193833,1714572648335,-151.0,0.00054794,3]
[325193834,1714572648344,-151.0,0.00054794,3]
[325193835,1714572648353,-151.0,0.00054794,3]
[325193836,1714572648362,-500.0,0.00054794,120]
[325193837,1714572648374,-151.0,0.00054794,7]
[325193838,1714572648383,-151.0,0.00054794,7]
[325193839,1714572648393,-151.0,0.00054794,7]
[325193840,1714572648402,-500.0,0.00054794,120]
[325193841,1714572648411,-500.0,0.00054794,120]
[325193842,1714572648421,-500.0,0.00054794,120]
[325193843,1714572648430,-500.0,0.00054794,120]
[325193844,1714572648440,-500.0,0.00054794,120]
[325193845,1714572648449,-675.55,0.00054794,120]
[325193846,1714572648459,-500.0,0.00054794,120]
[325193847,1714572648468,-162.529464,0.00054794,7]
[325193848,1714572648477,-500.0,0.00054794,120]
[325193849,1714572648486,-500.0,0.00054794,120]
[325193850,1714572648496,-500.0,0.00054794,120]
[325193851,1714572648505,-500.0,0.00054794,120]
[325193852,1714572648514,-500.0,0.00054794,120]
[325193853,1714572648524,-500.0,0.00054794,120]
[325193854,1714572648534,-500.0,0.00054794,120]
[325193855,1714572648544,-627.3,0.00054794,120]
[325193856,1714572648553,-500.0,0.00054794,120]
[325193857,1714572648562,-500.0,0.00054794,120]
[325193858,1714572648571,-263.565838,0.00054794,7]
[325193859,1714572648581,-263.565838,0.00054794,7]
[325193860,1714572648591,-263.565838,0.00054794,7]
[325193861,1714572648600,-263.565838,0.00054794,7]
[325193862,1714572648609,-263.565838,0.00054794,7]
[325193863,1714572648623,-263.565838,0.00054794,7]
[325193864,1714572648632,-500.0,0.00054794,120]
[325193865,1714572648641,-500.0,0.00054794,120]
[325193866,1714572648650,-500.0,0.00054794,120]
[325193867,1714572648659,-500.0,0.00054794,120]
[325193868,1714572648668,-500.0,0.00054794,60]
[325193869,1714572648678,-610.07403561,0.00054794,120]
[325193870,1714572648687,-500.0,0.00054794,120]
[325193871,1714572648696,-521.9529511,0.00054794,120]
[325193872,1714572648706,-500.0,0.00054794,120]
[325193873,1714572648716,-500.0,0.00054794,120]
[325193874,1714572648725,-500.0,0.00054794,120]
[325193875,1714572648735,-981.62,0.00054794,120]
[325193876,1714572648744,-500.0,0.00054794,120]
[325193877,1714572648754,-455.25613864,0.00054794,120]
[325193878,1714572648763,-500.0,0.00054794,120]
[325193879,1714572648772,-615.44,0.00054794,120]
[325193880,1714572648782,-1156.78,0.00054794,120]
[325193881,1714572648791,-542.5372522,0.00054794,120]
[325193882,1714572648801,-605.91,0.00054794,120]
[325193883,1714572648810,-500.0,0.00054794,120]
[325193884,1714572648820,-500.0,0.00054794,120]
[325193885,1714572648829,-500.0,0.00054794,120]
[325193886,1714572648838,-500.0,0.00054794,120]
[325193887,1714572648847,-500.0,0.00054794,120]
[325193888,1714572648857,-500.0,0.00054794,120]
[325193889,1714572648870,-430.16731504,0.00054794,120]
[325193890,1714572648879,-500.0,0.00054794,120]
[325193891,1714572648888,-500.0,0.00054794,120]
[325193892,1714572648897,-260.552831,0.00054794,7]
[325193893,1714572648907,-260.552831,0.00054794,7]
[325193894,1714572648916,-260.552831,0.00054794,7]
[325193895,1714572648925,-1193.27,0.00054794,120]
[325193896,1714572648935,-260.552831,0.00054794,7]
[325193897,1714572648945,-260.552831,0.00054794,7]
[325193898,1714572648955,-260.552831,0.00054794,7]
[325193899,1714572648966,-500.0,0.00054794,120]
[325193900,1714572648976,-500.0,0.00054794,120]
[325193901,1714572648985,-500.0,0.00054794,120]
[325193902,1714572648995,-500.0,0.00054794,120]
[325193903,1714572649004,-500.0,0.00054794,120]
[325193904,1714572649013,-500.0,0.00054794,120]
[325193905,1714572649023,-500.0,0.00054794,120]
[325193906,1714572649032,-412.81035146,0.00054794,120]
[325193907,1714572649041,-501.86647643,0.00054794,120]
[325193908,1714572649050,-500.0,0.00054794,120]
[325193909,1714572649059,-500.0,0.00054794,120]
[325193910,1714572649069,-500.0,0.00054794,120]
[325193911,1714572649078,-500.0,0.00054794,120]
[325193912,1714572649088,-435.76601335,0.00054794,120]
[325193913,1714572649097,-500.0,0.00054794,120]
[325193914,1714572649106,-500.0,0.00054794,120]
[325193915,1714572649117,-505.85986609,0.00054794,120]
[325193916,1714572649129,-500.0,0.00054794,120]
[325193917,1714572649139,-500.0,0.00054794,30]
[325193918,1714572649276,-500.0,0.00054794,120]
[325193919,1714572649285,-500.0,0.00054794,120]
[325193920,1714572649295,-500.0,0.00054794,120]
[325193921,1714572649304,-535.92,0.00054794,120]
[325193922,1714572649313,-500.0,0.00054794,120]
[325193923,1714572649322,-500.0,0.00054794,120]
[325193924,1714572649332,-500.0,0.00054794,120]
[325193925,1714572649341,-500.0,0.00054794,120]
[325193926,1714572649351,-226.452047,0.00054794,7]
[325193927,1714572649360,-500.0,0.00054794,120]
[325193928,1714572649371,-226.452047,0.00054794,7]
[325193929,1714572649381,-226.452047,0.00054794,7]
[325193930,1714572649390,-623.71,0.00054794,120]
[325193931,1714572649399,-500.0,0.00054794,120]
[325193932,1714572649408,-500.0,0.00054794,120]
[325193933,1714572649417,-500.0,0.00054794,120]
[325193934,1714572649427,-500.0,0.00054794,120]
[325193935,1714572649436,-500.0,0.00054794,120]
[325193936,1714572649445,-226.452047,0.00054794,7]
[325193937,1714572649455,-500.0,0.00054794,120]
[325193938,1714572649464,-226.452047,0.00054794,7]
[325193939,1714572649473,-500.0,0.00054794,120]
[325193940,1714572649482,-500.0,0.00054794,120]
[325193941,1714572649492,-226.452047,0.00054794,7]
[325193942,1714572649501,-500.0,0.00054794,120]
[325193943,1714572649510,-500.0,0.00054794,120]
[325193944,1714572649520,-500.0,0.00054794,120]
[325193945,1714572649530,-151.0,0.00054794,7]
[325193946,1714572649539,-151.0,0.00054794,7]
[325193947,1714572649548,-500.0,0.00054794,120]
[325193948,1714572649558,-151.0,0.00054794,7]
[325193949,1714572649567,-500.0,0.00054794,120]
[325193950,1714572649576,-500.0,0.00054794,120]
[325193951,1714572649586,-595.96942936,0.00054794,120]
[325193952,1714572649596,-815.15,0.00054794,120]
[325193953,1714572649606,-151.0,0.00054794,7]
[325193954,1714572649618,-500.0,0.00054794,120]
[325193955,1714572649628,-151.0,0.00054794,7]
[325193956,1714572649637,-151.0,0.00054794,7]
[325193957,1714572649647,-500.0,0.00054794,120]
[325193958,1714572649656,-500.0,0.00054794,30]
[325193959,1714572649666,-500.0,0.00054794,120]
[325193960,1714572649675,-587.94,0.00054794,120]
[325193961,1714572649685,-500.0,0.00054794,120]
[325193962,1714572649694,-220.646436,0.00054794,7]
[325193963,1714572649705,-220.646436,0.00054794,7]
[325193964,1714572649714,-220.646436,0.00054794,7]
[325193965,1714572649724,-500.0,0.00054794,120]
[325193966,1714572649733,-500.0,0.00054794,2]
[325193967,1714572649743,-221.28692868,0.00054794,120]
[325193968,1714572649752,-500.0,0.00054794,120]
[325193969,1714572649762,-500.0,0.00054794,120]
[325193970,1714572649771,-527.43275641,0.00054794,120]
[325193971,1714572649781,-220.646436,0.00054794,7]
[325193972,1714572649791,-220.646436,0.00054794,7]
[325193973,1714572649800,-220.646436,0.00054794,7]
[325193974,1714572649810,-500.0,0.00054794,120]
[325193975,1714572649820,-500.0,0.00054794,120]
[325193976,1714572649829,-500.0,0.00054794,120]
[325193977,1714572649838,-1302.55,0.00054794,120]
[325193978,1714572649847,-393.95084,0.00054794,7]
[325193979,1714572649857,-393.95084,0.00054794,7]
[325193980,1714572649868,-393.95084,0.00054794,7]
[325193981,1714572649878,-500.0,0.00054794,120]
[325193982,1714572649887,-500.0,0.00054794,120]
[325193983,1714572649897,-421.441234,0.00054794,7]
[325193984,1714572649907,-524.03,0.00054794,120]
[325193985,1714572649916,-421.441234,0.00054794,7]
[325193986,1714572649926,-500.0,0.00054794,120]
[325193987,1714572649935,-421.441234,0.00054794,7]
[325193988,1714572649944,-500.0,0.00054794,120]
[325193989,1714572649954,-421.441234,0.00054794,7]
[325193990,1714572649963,-421.441234,0.00054794,7]
[325193991,1714572649973,-421.441234,0.00054794,7]
[325193992,1714572649982,-500.0,0.00054794,120]
[325193993,1714572649991,-500.0,0.00054794,120]
[325193994,1714572650000,-308.138065,0.00054794,120]
[325193995,1714572650010,-505.30029406,0.00054794,120]
[325193996,1714572650020,-1645.04,0.00054794,120]
[325193997,1714572650029,-549.97,0.00054794,120]
[325193998,1714572650038,-500.0,0.00054794,120]
[325193999,1714572650048,-500.0,0.00054794,120]
[325194000,1714572650058,-154.79876161,0.00054794,120]
[325194001,1714572650067,-500.0,0.00054794,120]
[325194002,1714572650076,-500.0,0.00054794,120]
[325194003,1714572650086,-500.0,0.00054794,120]
[325194004,1714572650095,-500.0,0.00054794,120]
[325194005,1714572650104,-965.17,0.00054794,120]
[325194006,1714572650113,-500.0,0.00054794,120]
[325194007,1714572650125,-1276.34,0.00054794,120]
[325194008,1714572650135,-500.0,0.00054794,120]
[325194009,1714572650144,-548.5,0.00054794,120]
[325194010,1714572650153,-500.0,0.00054794,120]
[325194011,1714572650163,-500.0,0.00054794,120]
[325194012,1714572650174,-2762.03,0.00054794,120]
[325194013,1714572650185,-509.7198587,0.00054794,120]
[325194014,1714572650194,-411.54856075,0.00054794,120]
[325194015,1714572650205,-500.0,0.00054794,120]
[325194016,1714572650214,-500.0,0.00054794,120]
[325194017,1714572650223,-700.99,0.00054794,120]
[325194018,1714572650232,-500.0,0.00054794,120]
[325194019,1714572650242,-500.0,0.00054794,120]
[325194020,1714572650252,-500.0,0.00054794,120]
[325194021,1714572650262,-500.0,0.00054794,120]
[325194022,1714572650272,-1059.71,0.00054794,120]
[325194023,1714572650282,-619.74279753,0.00054794,120]
[325194024,1714572650293,-911.27,0.00054794,120]
[325194025,1714572650303,-500.0,0.00054794,120]
[325194026,1714572650314,-270.53465341,0.00054794,120]
[325194027,1714572650324,-1000.0,0.00054794,120]
[325194028,1714572650333,-500.0,0.00054794,120]
[325194029,1714572650347,-500.0,0.00054794,120]
[325194030,1714572650356,-500.0,0.00054794,120]
[325194031,1714572650366,-500.0,0.00054794,120]
[325194032,1714572650375,-500.0,0.00054794,120]
[325194033,1714572650385,-500.0,0.00054794,120]
[325194034,1714572650394,-160.06376333,0.00054794,2]
[325194035,1714572650403,-500.0,0.00054794,120]
[325194036,1714572650412,-500.0,0.00054794,120]
[325194037,1714572650424,-500.0,0.00054794,120]
[325194038,1714572650436,-500.0,0.00054794,120]
[325194039,1714572650446,-500.0,0.00054794,120]
[325194040,1714572650456,-500.0,0.00054794,120]
[325194041,1714572650466,-500.0,0.00054794,120]
[325194042,1714572650476,-494.24977109,0.00054794,120]
[325194043,1714572650486,-500.0,0.00054794,120]
[325194044,1714572650496,-874.24,0.00054794,120]
[325194045,1714572650506,-500.0,0.00054794,120]
[325194046,1714572650515,-412.16909245,0.00054794,2]
[325194047,1714572650526,-500.0,0.00054794,2]
[325194048,1714572650536,-500.0,0.00054794,120]
[325194049,1714572650544,-500.0,0.00054794,120]
[325194050,1714572650554,-612.01089784,0.00054794,120]
[325194051,1714572650563,-500.0,0.00054794,120]
[325194052,1714572650573,-500.0,0.00054794,120]
[325194053,1714572650584,-4565.84,0.00054794,120]
[325194054,1714572650594,-500.0,0.00054794,2]
[325194055,1714572650603,-500.0,0.00054794,120]
[325194056,1714572650612,-500.0,0.00054794,120]
[325194057,1714572650623,-500.0,0.00054794,120]
[325194058,1714572650633,-500.0,0.00054794,120]
[325194059,1714572650642,-500.0,0.00054794,2]
[325194060,1714572650652,-5396.39,0.00054794,120]
[325194061,1714572650661,-500.0,0.00054794,120]
[325194062,1714572650670,-500.0,0.00054794,120]
[325194063,1714572650680,-500.0,0.00054794,120]
[325194064,1714572650689,-500.0,0.00054794,120]
[325194065,1714572650699,-523.06,0.00054794,120]
[325194066,1714572650708,-500.0,0.00054794,120]
[325194067,1714572650718,-233.46401938,0.00054794,2]
[325194068,1714572650727,-500.0,0.00054794,120]
[325194069,1714572650736,-500.0,0.00054794,120]
[325194070,1714572650746,-519.47,0.00054794,120]
[325194071,1714572650755,-500.0,0.00054794,120]
[325194072,1714572650765,-500.0,0.00054794,120]
[325194073,1714572650774,-300.0,0.00054794,2]
[325194074,1714572650784,-500.0,0.00054794,120]
[325194075,1714572650794,-500.0,0.00054794,120]
[325194076,1714572650803,-781.51,0.00054794,120]
[325194077,1714572650813,-576.30168801,0.00054794,120]
[325194078,1714572650823,-500.0,0.00054794,120]
[325194079,1714572650832,-621.85189966,0.00054794,120]
[325194080,1714572650842,-500.0,0.00054794,120]
[325194081,1714572650851,-500.0,0.00054794,120]
[325194082,1714572650860,-500.0,0.00054794,120]
[325194083,1714572650871,-670.21,0.00054794,120]
[325194084,1714572650880,-513.78525612,0.00054794,120]
[325194085,1714572650889,-500.0,0.00054794,120]
[325194086,1714572650900,-500.0,0.00054794,120]
[325194087,1714572650909,-500.0,0.00054794,120]
[325194088,1714572650918,-500.0,0.00054794,120]
[325194089,1714572650927,-699.57,0.00054794,120]
[325194090,1714572650937,-500.0,0.00054794,120]
[325194091,1714572650948,-500.0,0.00054794,120]
[325194092,1714572650958,-369.25973567,0.00054794,120]
[325194093,1714572650968,-500.0,0.00054794,120]
[325194094,1714572650978,-553.84,0.00054794,120]
[325194095,1714572650987,-190.77695748,0.00054794,120]
[325194096,1714572650997,-500.0,0.00054794,120]
[325194097,1714572651008,-500.0,0.00054794,120]
[325194098,1714572651017,-500.0,0.00054794,120]
[325194099,1714572651027,-540.29187084,0.00054794,120]
[325194100,1714572651037,-500.0,0.00054794,120]
[325194101,1714572651046,-500.0,0.00054794,120]
[325194102,1714572651055,-500.0,0.00054794,120]
[325194103,1714572651065,-339.599942,0.00054794,7]
[325194104,1714572651074,-339.599942,0.00054794,7]
[325194105,1714572651083,-339.599942,0.00054794,7]
[325194106,1714572651093,-500.0,0.00054794,120]
[325194107,1714572651103,-500.0,0.00054794,120]
[325194108,1714572651113,-500.0,0.00054794,120]
[325194109,1714572651125,-500.0,0.00054794,120]
[325194110,1714572651134,-339.599942,0.00054794,7]
[325194111,1714572651144,-339.599942,0.00054794,7]
[325194112,1714572651153,-500.0,0.00054794,120]
[325194113,1714572651170,-339.599942,0.00054794,7]
[325194114,1714572651179,-500.0,0.00054794,120]
[325194115,1714572651189,-500.0,0.00054794,120]
[325194116,1714572651198,-500.0,0.00054794,120]
[325194117,1714572651209,-500.0,0.00054794,120]
[325194118,1714572651218,-670.01,0.00054794,120]
[325194119,1714572651228,-500.0,0.00054794,120]
[325194120,1714572651237,-951.34,0.00054794,2]
[325194121,1714572651246,-500.0,0.00054794,120]
[325194122,1714572651256,-487.1362537,0.00054794,120]
[325194123,1714572651266,-735.78,0.00054794,120]
[325194124,1714572651276,-500.0,0.00054794,120]
[325194125,1714572651285,-151.0,0.00054794,7]
[325194126,1714572651295,-196.312664,0.00054794,7]
[325194127,1714572651304,-300.0,0.00054794,7]
[325194128,1714572651314,-500.0,0.00054794,120]
[325194129,1714572651323,-208.3697921,0.00054794,120]
[325194130,1714572651332,-457.83424921,0.00054794,120]
[325194131,1714572651342,-500.0,0.00054794,120]
[325194132,1714572651351,-520.71197771,0.00054794,120]
[325194133,1714572651360,-500.0,0.00054794,120]
[325194134,1714572651373,-500.0,0.00054794,120]
[325194135,1714572651383,-151.0,0.00054794,7]
[325194136,1714572651392,-151.0,0.00054794,7]
[325194137,1714572651402,-151.0,0.00054794,7]
[325194138,1714572651411,-151.0,0.00054794,7]
[325194139,1714572651420,-151.0,0.00054794,7]
[325194140,1714572651430,-500.0,0.00054794,120]
[325194141,1714572651439,-500.0,0.00054794,120]
[325194142,1714572651448,-500.0,0.00054794,120]
[325194143,1714572651457,-500.0,0.00054794,120]
[325194144,1714572651467,-228.9410275,0.00054794,120]
[325194145,1714572651477,-500.0,0.00054794,120]
[325194146,1714572651486,-500.28759022,0.00054794,120]
[325194147,1714572651495,-848.19,0.00054794,120]
[325194148,1714572651504,-500.0,0.00054794,120]
[325194149,1714572651513,-500.0,0.00054794,120]
[325194150,1714572651522,-500.0,0.00054794,120]
[325194151,1714572651532,-500.0,0.00054794,120]
[325194152,1714572651541,-500.0,0.00054794,120]
[325194153,1714572651550,-500.0,0.00054794,120]
[325194154,1714572651559,-500.0,0.00054794,120]
[325194155,1714572651568,-500.0,0.00054794,120]
[325194156,1714572651578,-500.0,0.00054794,120]
[325194157,1714572651587,-500.0,0.00054794,120]
[325194158,1714572651597,-500.0,0.00054794,120]
[325194159,1714572651606,-500.0,0.00054794,120]
[325194160,1714572651615,-500.0,0.00054794,120]
[325194161,1714572651627,-500.0,0.00054794,120]
[325194162,1714572651636,-500.0,0.00054794,120]
[325194163,1714572651646,-500.0,0.00054794,120]
[325194164,1714572651655,-500.0,0.00054794,120]
[325194165,1714572651665,-181.33066181,0.00054794,120]
[325194166,1714572651675,-500.0,0.00054794,120]
[325194167,1714572651684,-151.0,0.00054794,7]
[325194168,1714572651693,-151.0,0.00054794,7]
[325194169,1714572651703,-151.0,0.00054794,7]
[325194170,1714572651712,-500.0,0.00054794,120]
[325194171,1714572651722,-500.0,0.00054794,7]
[325194172,1714572651731,-500.0,0.00054794,120]
[325194173,1714572651741,-500.0,0.00054794,120]
[325194174,1714572651750,-501.07653478,0.00054794,120]
[325194175,1714572651760,-500.0,0.00054794,120]
[325194176,1714572651769,-500.0,0.00054794,120]
[325194177,1714572651779,-500.0,0.00054794,120]
[325194178,1714572651788,-361.35558718,0.00054794,120]
[325194179,1714572651797,-500.0,0.00054794,120]
[325194180,1714572651807,-500.0,0.00054794,120]
[325194181,1714572651817,-502.92570621,0.00054794,120]
[325194182,1714572651826,-500.0,0.00054794,120]
[325194183,1714572651835,-1182.29,0.00054794,120]
[325194184,1714572651845,-500.0,0.00054794,120]
[325194185,1714572651855,-500.0,0.00054794,120]
[325194186,1714572651864,-1042.65,0.00054794,120]
[325194187,1714572651876,-306.00621007,0.00054794,120]